[Event "Titled Tuesday Blitz January 10 Early 2023"]
[White "Leschinsky, Gary"]
[Black "Iskusnyh, Sergei"]
[WhiteFideId "30951321"]
[BlackFideId "4120027"]
[WhiteElo "1969"]
[BlackElo "2440"]
[Result "1/2-1/2"]
[Round "03"]
[TimeControl "180+2"]
[Date "2023.01.10"]
[WhiteClock "0:00:19"]
[BlackClock "0:00:08"]

1. d4 {[%clk 0:03:00]}  d5 {[%clk 0:02:59]} 2. c4 {[%clk 0:03:01]}  c6 {[%clk 0:02:58]} 3. Nf3 {[%clk 0:02:54]}  Nf6 {[%clk 0:02:58]} 4. g3 {[%clk 0:02:54]}  Bf5 {[%clk 0:02:57]} 5. Bg2 {[%clk 0:02:54]}  e6 {[%clk 0:02:57]} 6. Nc3 {[%clk 0:02:53]}  h6 {[%clk 0:02:54]} 7. Qb3 {[%clk 0:02:51]}  Qb6 {[%clk 0:02:52]} 8. c5 {[%clk 0:02:51]}  Qc7 {[%clk 0:02:45]} 9. Bf4 {[%clk 0:02:49]}  Qc8 {[%clk 0:02:44]} 10. O-O {[%clk 0:02:44]}  Nbd7 {[%clk 0:02:43]} 11. Qd1 {[%clk 0:02:37]}  Be7 {[%clk 0:02:39]} 12. b4 {[%clk 0:02:37]}  Ne4 {[%clk 0:02:35]} 13. Nxe4 {[%clk 0:02:36]}  Bxe4 {[%clk 0:02:36]} 14. Ne5 {[%clk 0:02:34]}  Bxg2 {[%clk 0:02:34]} 15. Kxg2 {[%clk 0:02:35]}  O-O {[%clk 0:02:24]} 16. Nxd7 {[%clk 0:02:20]}  Qxd7 {[%clk 0:02:24]} 17. Qd2 {[%clk 0:02:15]}  Bf6 {[%clk 0:02:17]} 18. e3 {[%clk 0:02:08]}  Rfe8 {[%clk 0:02:12]} 19. Be5 {[%clk 0:02:01]}  Be7 {[%clk 0:02:08]} 20. g4 {[%clk 0:01:54]}  f6 {[%clk 0:02:05]} 21. Bg3 {[%clk 0:01:53]}  e5 {[%clk 0:02:03]} 22. h3 {[%clk 0:01:47]}  Bd8 {[%clk 0:01:53]} 23. a4 {[%clk 0:01:28]}  Bc7 {[%clk 0:01:51]} 24. Rfe1 {[%clk 0:01:23]}  f5 {[%clk 0:01:50]} 25. Qd1 {[%clk 0:01:11]}  f4 {[%clk 0:01:34]} 26. Bh2 {[%clk 0:01:05]}  fxe3 {[%clk 0:01:01]} 27. Rxe3 {[%clk 0:01:02]}  exd4 {[%clk 0:00:55]} 28. Qxd4 {[%clk 0:01:03]}  Rxe3 {[%clk 0:00:46]} 29. Qxe3 {[%clk 0:01:01]}  Re8 {[%clk 0:00:44]} 30. Qd3 {[%clk 0:00:59]}  Bxh2 {[%clk 0:00:42]} 31. Kxh2 {[%clk 0:01:00]}  Re4 {[%clk 0:00:43]} 32. b5 {[%clk 0:00:57]}  Qe7 {[%clk 0:00:39]} 33. Rc1 {[%clk 0:00:46]}  Rxa4 {[%clk 0:00:32]} 34. bxc6 {[%clk 0:00:44]}  bxc6 {[%clk 0:00:33]} 35. Qf5 {[%clk 0:00:43]}  Re4 {[%clk 0:00:21]} 36. Rb1 {[%clk 0:00:35]}  Qe5+ {[%clk 0:00:20]} 37. Qxe5 {[%clk 0:00:35]}  Rxe5 {[%clk 0:00:21]} 38. Rb7 {[%clk 0:00:34]}  d4 {[%clk 0:00:19]} 39. Rd7 {[%clk 0:00:32]}  Rxc5 {[%clk 0:00:19]} 40. Rxd4 {[%clk 0:00:31]}  a5 {[%clk 0:00:18]} 41. Rd7 {[%clk 0:00:30]}  a4 {[%clk 0:00:13]} 42. Ra7 {[%clk 0:00:31]}  Rc4 {[%clk 0:00:13]} 43. Kg3 {[%clk 0:00:31]}  g5 {[%clk 0:00:11]} 44. h4 {[%clk 0:00:28]}  Rc3+ {[%clk 0:00:10]} 45. f3 {[%clk 0:00:27]}  a3 {[%clk 0:00:09]} 46. hxg5 {[%clk 0:00:25]}  hxg5 {[%clk 0:00:09]} 47. Kf2 {[%clk 0:00:20]}  Rc2+ {[%clk 0:00:09]} 48. Ke3 {[%clk 0:00:20]}  a2 {[%clk 0:00:09]} 49. Ke4 {[%clk 0:00:20]}  Kf8 {[%clk 0:00:08]} 50. Kf5 {[%clk 0:00:20]}  Rc5+ {[%clk 0:00:08]} 51. Kf6 {[%clk 0:00:20]}  Ke8 {[%clk 0:00:06]} 52. Rxa2 {[%clk 0:00:19]}  Kd7 {[%clk 0:00:06]} 53. Ra7+ {[%clk 0:00:18]}  Kd6 {[%clk 0:00:06]} 54. Rg7 {[%clk 0:00:18]}  Rc3 {[%clk 0:00:06]} 55. Kxg5 {[%clk 0:00:16]}  Rxf3 {[%clk 0:00:06]} 56. Rg8 {[%clk 0:00:17]}  c5 {[%clk 0:00:06]} 57. Rc8 {[%clk 0:00:17]}  Kd5 {[%clk 0:00:05]} 58. Kh6 {[%clk 0:00:18]}  c4 {[%clk 0:00:05]} 59. g5 {[%clk 0:00:18]}  Rh3+ {[%clk 0:00:06]} 60. Kg7 {[%clk 0:00:18]}  c3 {[%clk 0:00:06]} 61. Rd8+ {[%clk 0:00:18]}  Kc4 {[%clk 0:00:06]} 62. g6 {[%clk 0:00:18]}  c2 {[%clk 0:00:06]} 63. Rc8+ {[%clk 0:00:19]}  Kb3 {[%clk 0:00:05]} 64. Rxc2 {[%clk 0:00:18]}  Kxc2 {[%clk 0:00:05]} 65. Kf8 {[%clk 0:00:18]}  Rf3+ {[%clk 0:00:05]} 66. Ke7 {[%clk 0:00:19]}  Rg3 {[%clk 0:00:05]} 67. Kf7 {[%clk 0:00:18]}  Kd3 {[%clk 0:00:06]} 68. g7 {[%clk 0:00:19]}  Ke4 {[%clk 0:00:07]} 69. g8=Q {[%clk 0:00:19]}  Rxg8 {[%clk 0:00:08]} 70. Kxg8 {[%clk 0:00:19]} 1/2-1/2


[Site "https://www.chess.com"]

[Event "Titled Tuesday Blitz January 10 Early 2023"]
[White "Andreev, Konstantin"]
[Black "Golubev, Mikhail"]
[WhiteFideId "24239305"]
[BlackFideId "14100983"]
[WhiteElo "2195"]
[BlackElo "2461"]
[Result "1-0"]
[Round "03"]
[TimeControl "180+2"]
[Date "2023.01.10"]
[WhiteClock "0:00:17"]
[BlackClock "0:00:01"]

1. e4 {[%clk 0:03:00]}  c5 {[%clk 0:02:59]} 2. Nf3 {[%clk 0:03:01]}  d6 {[%clk 0:02:59]} 3. d4 {[%clk 0:03:00]}  cxd4 {[%clk 0:02:59]} 4. Nxd4 {[%clk 0:03:01]}  Nf6 {[%clk 0:02:59]} 5. Nc3 {[%clk 0:03:02]}  Nc6 {[%clk 0:02:57]} 6. f3 {[%clk 0:03:01]}  e5 {[%clk 0:02:56]} 7. Nb3 {[%clk 0:03:01]}  Be7 {[%clk 0:02:55]} 8. Be3 {[%clk 0:03:01]}  O-O {[%clk 0:02:52]} 9. Qd2 {[%clk 0:03:01]}  a5 {[%clk 0:02:52]} 10. Bb5 {[%clk 0:03:01]}  Be6 {[%clk 0:02:50]} 11. O-O-O {[%clk 0:03:01]}  Nb4 {[%clk 0:02:48]} 12. a3 {[%clk 0:02:52]}  Qc7 {[%clk 0:02:11]} 13. Kb1 {[%clk 0:02:48]}  d5 {[%clk 0:02:11]} 14. exd5 {[%clk 0:02:46]}  Nbxd5 {[%clk 0:02:00]} 15. Nxd5 {[%clk 0:02:43]}  Nxd5 {[%clk 0:01:57]} 16. a4 {[%clk 0:02:20]}  Rfc8 {[%clk 0:01:36]} 17. Rc1 {[%clk 0:02:02]}  Nb4 {[%clk 0:01:04]} 18. g4 {[%clk 0:01:49]}  Bc4 {[%clk 0:00:53]} 19. Bxc4 {[%clk 0:01:04]}  Qxc4 {[%clk 0:00:54]} 20. Qf2 {[%clk 0:01:04]}  Nxc2 {[%clk 0:00:46]} 21. Qxc2 {[%clk 0:01:03]}  Qe6 {[%clk 0:00:34]} 22. Qd3 {[%clk 0:01:02]}  Rd8 {[%clk 0:00:27]} 23. Qc4 {[%clk 0:01:02]}  Qg6+ {[%clk 0:00:23]} 24. Ka2 {[%clk 0:00:59]}  b5 {[%clk 0:00:21]} 25. axb5 {[%clk 0:00:53]}  a4 {[%clk 0:00:21]} 26. Nc5 {[%clk 0:00:53]}  a3 {[%clk 0:00:19]} 27. bxa3 {[%clk 0:00:49]}  e4 {[%clk 0:00:09]} 28. Qxe4 {[%clk 0:00:39]}  Qb6 {[%clk 0:00:04]} 29. Qb4 {[%clk 0:00:29]}  Bf6 {[%clk 0:00:03]} 30. Rc2 {[%clk 0:00:28]}  Re8 {[%clk 0:00:03]} 31. Bd4 {[%clk 0:00:26]}  Bxd4 {[%clk 0:00:02]} 32. Qxd4 {[%clk 0:00:27]}  Qxb5 {[%clk 0:00:02]} 33. Rb1 {[%clk 0:00:25]}  Qc6 {[%clk 0:00:02]} 34. Ne4 {[%clk 0:00:23]}  Qxc2+ {[%clk 0:00:01]} 35. Rb2 {[%clk 0:00:23]}  Rxa3+ {[%clk 0:00:01]} 36. Kxa3 {[%clk 0:00:22]}  Ra8+ {[%clk 0:00:01]} 37. Kb4 {[%clk 0:00:22]}  Rb8+ {[%clk 0:00:01]} 38. Ka3 {[%clk 0:00:20]}  Ra8+ {[%clk 0:00:02]} 39. Kb4 {[%clk 0:00:20]}  Qa4+ {[%clk 0:00:02]} 40. Kc3 {[%clk 0:00:19]}  Rc8+ {[%clk 0:00:01]} 41. Nc5 {[%clk 0:00:20]}  Qa3+ {[%clk 0:00:01]} 42. Kc4 {[%clk 0:00:18]}  Qxf3 {[%clk 0:00:01]} 43. Rb7 {[%clk 0:00:17]} 1-0


[Site "https://www.chess.com"]

[Event "Titled Tuesday Blitz January 10 Early 2023"]
[White "Chos, Alexey"]
[Black "Manelyuk, Daniil"]
[WhiteFideId "14117762"]
[BlackFideId "44173920"]
[WhiteElo "2296"]
[BlackElo "2302"]
[Result "0-1"]
[Round "03"]
[TimeControl "180+2"]
[Date "2023.01.10"]
[WhiteClock "0:00:01"]
[BlackClock "0:00:04"]

1. Nf3 {[%clk 0:02:59]}  d5 {[%clk 0:02:33]} 2. g3 {[%clk 0:03:00]}  c6 {[%clk 0:02:31]} 3. Bg2 {[%clk 0:02:59]}  Nf6 {[%clk 0:02:31]} 4. O-O {[%clk 0:02:59]}  Bg4 {[%clk 0:02:29]} 5. c4 {[%clk 0:02:59]}  Bxf3 {[%clk 0:02:28]} 6. Bxf3 {[%clk 0:02:58]}  e6 {[%clk 0:02:28]} 7. d4 {[%clk 0:02:57]}  Bd6 {[%clk 0:02:27]} 8. Nc3 {[%clk 0:02:56]}  O-O {[%clk 0:02:27]} 9. e4 {[%clk 0:02:56]}  dxe4 {[%clk 0:02:27]} 10. Nxe4 {[%clk 0:02:56]}  Nxe4 {[%clk 0:02:27]} 11. Bxe4 {[%clk 0:02:56]}  Nd7 {[%clk 0:02:28]} 12. Bg2 {[%clk 0:02:56]}  Nf6 {[%clk 0:02:28]} 13. Be3 {[%clk 0:02:56]}  Qa5 {[%clk 0:02:27]} 14. h3 {[%clk 0:02:55]}  Rfd8 {[%clk 0:02:26]} 15. Qb3 {[%clk 0:02:54]}  Rd7 {[%clk 0:02:26]} 16. a3 {[%clk 0:02:24]}  Rad8 {[%clk 0:02:23]} 17. Rad1 {[%clk 0:02:21]}  Be7 {[%clk 0:02:16]} 18. g4 {[%clk 0:02:17]}  Qa6 {[%clk 0:02:15]} 19. Rfe1 {[%clk 0:02:15]}  Ne8 {[%clk 0:02:08]} 20. Bf1 {[%clk 0:02:04]}  b6 {[%clk 0:02:04]} 21. d5 {[%clk 0:01:37]}  c5 {[%clk 0:01:33]} 22. dxe6 {[%clk 0:01:36]}  fxe6 {[%clk 0:01:34]} 23. Rxd7 {[%clk 0:01:35]}  Rxd7 {[%clk 0:01:35]} 24. Bf4 {[%clk 0:01:30]}  g5 {[%clk 0:00:49]} 25. Bg3 {[%clk 0:01:27]}  Ng7 {[%clk 0:00:49]} 26. Qf3 {[%clk 0:01:23]}  Qb7 {[%clk 0:00:47]} 27. Qe2 {[%clk 0:01:13]}  Bf6 {[%clk 0:00:42]} 28. Bg2 {[%clk 0:01:02]}  Qc8 {[%clk 0:00:40]} 29. Be4 {[%clk 0:00:49]}  Qd8 {[%clk 0:00:40]} 30. Qc2 {[%clk 0:00:35]}  Ne8 {[%clk 0:00:20]} 31. Bc6 {[%clk 0:00:22]}  Rd2 {[%clk 0:00:19]} 32. Qe4 {[%clk 0:00:20]}  Ng7 {[%clk 0:00:19]} 33. b4 {[%clk 0:00:19]}  cxb4 {[%clk 0:00:18]} 34. axb4 {[%clk 0:00:20]}  Qd4 {[%clk 0:00:18]} 35. Qf3 {[%clk 0:00:18]}  Rd3 {[%clk 0:00:14]} 36. Qe2 {[%clk 0:00:11]}  Rxg3+ {[%clk 0:00:12]} 37. Kh2 {[%clk 0:00:09]}  Rc3 {[%clk 0:00:12]} 38. Be4 {[%clk 0:00:04]}  Qxc4 {[%clk 0:00:12]} 39. Qd2 {[%clk 0:00:04]}  Qc7+ {[%clk 0:00:11]} 40. Kg2 {[%clk 0:00:03]}  Qf4 {[%clk 0:00:10]} 41. Qd7 {[%clk 0:00:01]}  Qc7 {[%clk 0:00:06]} 42. Qb5 {[%clk 0:00:01]}  Rb3 {[%clk 0:00:05]} 43. Qe2 {[%clk 0:00:02]}  Rc3 {[%clk 0:00:05]} 44. Bb1 {[%clk 0:00:02]}  h6 {[%clk 0:00:05]} 45. Be4 {[%clk 0:00:02]}  Qc4 {[%clk 0:00:05]} 46. Qf3 {[%clk 0:00:02]}  Qd4 {[%clk 0:00:05]} 47. Qe2 {[%clk 0:00:02]}  Qe5 {[%clk 0:00:05]} 48. Qd2 {[%clk 0:00:02]}  Qd4 {[%clk 0:00:04]} 49. Qa2 {[%clk 0:00:01]}  Qc4 {[%clk 0:00:04]} 50. Qxa7 {[%clk 0:00:02]}  Ne8 {[%clk 0:00:04]} 51. Qa8 {[%clk 0:00:02]}  Kf8 {[%clk 0:00:04]} 52. Bg6 {[%clk 0:00:01]}  Qc8 {[%clk 0:00:04]} 0-1


[Site "https://www.chess.com"]

[Event "Titled Tuesday Blitz January 10 Early 2023"]
[White "Aaditya Dhingra"]
[Black "Bychkov, Vladimir"]
[WhiteFideId "25678191"]
[BlackFideId "24151513"]
[WhiteElo "2027"]
[BlackElo "2225"]
[Result "1-0"]
[Round "03"]
[TimeControl "180+2"]
[Date "2023.01.10"]
[WhiteClock "0:00:32"]
[BlackClock "0:00:59"]

1. e4 {[%clk 0:03:00]}  c6 {[%clk 0:02:59]} 2. d3 {[%clk 0:02:59]}  d5 {[%clk 0:03:00]} 3. Nd2 {[%clk 0:02:59]}  g6 {[%clk 0:03:00]} 4. Ngf3 {[%clk 0:02:58]}  Bg7 {[%clk 0:03:01]} 5. g3 {[%clk 0:02:59]}  e5 {[%clk 0:03:01]} 6. Bg2 {[%clk 0:02:59]}  Ne7 {[%clk 0:03:01]} 7. O-O {[%clk 0:02:58]}  O-O {[%clk 0:03:02]} 8. Re1 {[%clk 0:02:54]}  d4 {[%clk 0:03:02]} 9. a4 {[%clk 0:02:51]}  a5 {[%clk 0:03:02]} 10. Nc4 {[%clk 0:02:50]}  Qc7 {[%clk 0:02:57]} 11. h4 {[%clk 0:02:49]}  b5 {[%clk 0:02:57]} 12. axb5 {[%clk 0:02:46]}  cxb5 {[%clk 0:02:57]} 13. Na3 {[%clk 0:02:46]}  Ba6 {[%clk 0:02:55]} 14. b3 {[%clk 0:02:38]}  h5 {[%clk 0:02:51]} 15. Bd2 {[%clk 0:02:31]}  Nd7 {[%clk 0:02:47]} 16. Rf1 {[%clk 0:02:27]}  Rfc8 {[%clk 0:02:45]} 17. Ra2 {[%clk 0:02:25]}  a4 {[%clk 0:02:36]} 18. bxa4 {[%clk 0:02:22]}  bxa4 {[%clk 0:02:34]} 19. Bh3 {[%clk 0:02:19]}  Rcb8 {[%clk 0:02:29]} 20. Ng5 {[%clk 0:02:16]}  Nf8 {[%clk 0:01:58]} 21. f4 {[%clk 0:02:14]}  Bc8 {[%clk 0:01:56]} 22. Bxc8 {[%clk 0:02:09]}  Qxc8 {[%clk 0:01:52]} 23. fxe5 {[%clk 0:02:08]}  Bxe5 {[%clk 0:01:48]} 24. Nxf7 {[%clk 0:01:57]}  Qh3 {[%clk 0:01:35]} 25. Qf3 {[%clk 0:01:40]}  Qxg3+ {[%clk 0:01:34]} 26. Qxg3 {[%clk 0:01:40]}  Bxg3 {[%clk 0:01:35]} 27. Nh6+ {[%clk 0:01:37]}  Kh8 {[%clk 0:01:35]} 28. Bg5 {[%clk 0:01:34]}  Ng8 {[%clk 0:01:26]} 29. Rf7 {[%clk 0:01:18]}  Nxh6 {[%clk 0:01:10]} 30. Bf6+ {[%clk 0:01:16]}  Kg8 {[%clk 0:01:06]} 31. Rg7+ {[%clk 0:01:16]}  Kh8 {[%clk 0:01:06]} 32. Rxg6+ {[%clk 0:01:15]}  Kh7 {[%clk 0:01:06]} 33. Rg7+ {[%clk 0:01:15]}  Kh8 {[%clk 0:01:07]} 34. Rxg3+ {[%clk 0:01:14]}  Kh7 {[%clk 0:01:07]} 35. Rg7+ {[%clk 0:01:08]}  Kh8 {[%clk 0:01:08]} 36. c4 {[%clk 0:00:41]}  Ng4 {[%clk 0:01:05]} 37. Rxg4+ {[%clk 0:00:40]}  Kh7 {[%clk 0:01:04]} 38. Rg7+ {[%clk 0:00:40]}  Kh6 {[%clk 0:01:04]} 39. Rag2 {[%clk 0:00:38]}  Rb3 {[%clk 0:01:04]} 40. Rg8 {[%clk 0:00:33]}  Rxa3 {[%clk 0:01:00]} 41. Bg7+ {[%clk 0:00:32]}  Kh7 {[%clk 0:00:59]} 42. Rh8# {[%clk 0:00:32]} 1-0


[Site "https://www.chess.com"]

[Event "Titled Tuesday Blitz January 10 Early 2023"]
[White "Mohammed, Dilshad"]
[Black "Arngrimsson, Dagur"]
[WhiteFideId "5050421"]
[BlackFideId "2301288"]
[WhiteElo "2103"]
[BlackElo "2370"]
[Result "0-1"]
[Round "03"]
[TimeControl "180+2"]
[Date "2023.01.10"]
[WhiteClock "0:00:17"]
[BlackClock "0:01:04"]

1. Nf3 {[%clk 0:02:54]}  Nf6 {[%clk 0:02:27]} 2. d4 {[%clk 0:02:54]}  d5 {[%clk 0:02:27]} 3. c4 {[%clk 0:02:53]}  c6 {[%clk 0:02:27]} 4. e3 {[%clk 0:02:51]}  Bf5 {[%clk 0:02:26]} 5. cxd5 {[%clk 0:02:50]}  cxd5 {[%clk 0:02:26]} 6. Qb3 {[%clk 0:02:50]}  Qc7 {[%clk 0:02:26]} 7. Nc3 {[%clk 0:02:50]}  e6 {[%clk 0:02:22]} 8. Bd2 {[%clk 0:02:47]}  a6 {[%clk 0:02:21]} 9. Rc1 {[%clk 0:02:47]}  Nc6 {[%clk 0:02:21]} 10. Ne5 {[%clk 0:02:45]}  Bd6 {[%clk 0:02:21]} 11. Nxc6 {[%clk 0:02:39]}  bxc6 {[%clk 0:02:21]} 12. Qa4 {[%clk 0:02:39]}  O-O {[%clk 0:02:21]} 13. h3 {[%clk 0:02:35]}  Qb6 {[%clk 0:02:11]} 14. b3 {[%clk 0:02:27]}  c5 {[%clk 0:02:10]} 15. dxc5 {[%clk 0:02:22]}  Bxc5 {[%clk 0:02:11]} 16. Be2 {[%clk 0:02:18]}  Rfd8 {[%clk 0:02:09]} 17. Qh4 {[%clk 0:02:12]}  d4 {[%clk 0:02:08]} 18. Na4 {[%clk 0:02:12]}  dxe3 {[%clk 0:01:53]} 19. fxe3 {[%clk 0:02:02]}  Qd6 {[%clk 0:01:49]} 20. Rd1 {[%clk 0:01:44]}  Ne4 {[%clk 0:01:47]} 21. Nxc5 {[%clk 0:01:34]}  Qxc5 {[%clk 0:01:42]} 22. b4 {[%clk 0:00:58]}  Qc2 {[%clk 0:01:28]} 23. O-O {[%clk 0:00:58]}  Rxd2 {[%clk 0:01:22]} 24. Rxd2 {[%clk 0:00:55]}  Qxd2 {[%clk 0:01:23]} 25. Bf3 {[%clk 0:00:44]}  Qxe3+ {[%clk 0:01:22]} 26. Kh2 {[%clk 0:00:45]}  Nd2 {[%clk 0:01:14]} 27. Bxa8 {[%clk 0:00:28]}  Nxf1+ {[%clk 0:01:13]} 28. Kh1 {[%clk 0:00:28]}  Ng3+ {[%clk 0:01:06]} 29. Kh2 {[%clk 0:00:28]}  Nf1+ {[%clk 0:01:06]} 30. Kh1 {[%clk 0:00:28]}  g5 {[%clk 0:01:05]} 31. Qc4 {[%clk 0:00:23]}  Ng3+ {[%clk 0:01:05]} 32. Kh2 {[%clk 0:00:23]}  Ne2 {[%clk 0:01:05]} 33. Bf3 {[%clk 0:00:17]}  Qg1# {[%clk 0:01:04]} 0-1


[Site "https://www.chess.com"]

[Event "Titled Tuesday Blitz January 10 Early 2023"]
[White "Doluhanova, Evgeniya"]
[Black "Czernek, Tymon"]
[WhiteFideId "14112035"]
[BlackFideId "1199510"]
[WhiteElo "2275"]
[BlackElo "2314"]
[Result "0-1"]
[Round "03"]
[TimeControl "180+2"]
[Date "2023.01.10"]
[WhiteClock "0:00:16"]
[BlackClock "0:00:26"]

1. Nf3 {[%clk 0:03:00]}  d5 {[%clk 0:02:57]} 2. g3 {[%clk 0:03:00]}  Nf6 {[%clk 0:02:57]} 3. Bg2 {[%clk 0:03:01]}  e6 {[%clk 0:02:57]} 4. O-O {[%clk 0:03:01]}  Be7 {[%clk 0:02:58]} 5. b3 {[%clk 0:02:59]}  O-O {[%clk 0:02:59]} 6. Bb2 {[%clk 0:02:59]}  c5 {[%clk 0:02:59]} 7. c4 {[%clk 0:02:59]}  Nc6 {[%clk 0:02:59]} 8. cxd5 {[%clk 0:02:57]}  exd5 {[%clk 0:03:00]} 9. d4 {[%clk 0:02:57]}  c4 {[%clk 0:02:56]} 10. bxc4 {[%clk 0:02:52]}  dxc4 {[%clk 0:02:57]} 11. Ne5 {[%clk 0:02:52]}  Qb6 {[%clk 0:02:35]} 12. Nxc6 {[%clk 0:02:50]}  bxc6 {[%clk 0:02:32]} 13. Qc1 {[%clk 0:02:39]}  Nd5 {[%clk 0:02:19]} 14. Ba3 {[%clk 0:02:11]}  Bxa3 {[%clk 0:02:10]} 15. Nxa3 {[%clk 0:02:11]}  Qxd4 {[%clk 0:01:59]} 16. Nxc4 {[%clk 0:02:10]}  Ba6 {[%clk 0:01:58]} 17. Na5 {[%clk 0:02:03]}  Nc3 {[%clk 0:01:52]} 18. Nxc6 {[%clk 0:01:27]}  Nxe2+ {[%clk 0:01:50]} 19. Kh1 {[%clk 0:01:26]}  Qb6 {[%clk 0:01:26]} 20. Qe3 {[%clk 0:01:08]}  Rae8 {[%clk 0:01:19]} 21. Ne7+ {[%clk 0:00:51]}  Kh8 {[%clk 0:01:14]} 22. Qxb6 {[%clk 0:00:51]}  axb6 {[%clk 0:01:15]} 23. Nd5 {[%clk 0:00:51]}  Rb8 {[%clk 0:01:06]} 24. Rfb1 {[%clk 0:00:46]}  Bd3 {[%clk 0:00:54]} 25. Rb2 {[%clk 0:00:43]}  b5 {[%clk 0:00:53]} 26. Re1 {[%clk 0:00:38]}  Rfe8 {[%clk 0:00:39]} 27. Rd1 {[%clk 0:00:30]}  Bc4 {[%clk 0:00:37]} 28. Ne3 {[%clk 0:00:29]}  Nc3 {[%clk 0:00:37]} 29. Ra1 {[%clk 0:00:20]}  Bd3 {[%clk 0:00:29]} 30. h4 {[%clk 0:00:20]}  b4 {[%clk 0:00:28]} 31. a3 {[%clk 0:00:17]}  b3 {[%clk 0:00:26]} 32. Rc1 {[%clk 0:00:17]}  Na4 {[%clk 0:00:26]} 33. Rd2 {[%clk 0:00:16]}  b2 {[%clk 0:00:26]} 0-1


[Site "https://www.chess.com"]

[Event "Titled Tuesday Blitz January 10 Early 2023"]
[White "Fernandez Siles, Luis"]
[Black "Mendez Fortes, Eduardo Jesus"]
[WhiteFideId "2209420"]
[BlackFideId "3502376"]
[WhiteElo "2218"]
[BlackElo "2250"]
[Result "0-1"]
[Round "03"]
[TimeControl "180+2"]
[Date "2023.01.10"]
[WhiteClock "0:00:04"]
[BlackClock "0:00:08"]

1. d4 {[%clk 0:03:00]}  f6 {[%clk 0:02:51]} 2. e4 {[%clk 0:02:56]}  e6 {[%clk 0:02:37]} 3. Nc3 {[%clk 0:02:48]}  g6 {[%clk 0:02:35]} 4. f4 {[%clk 0:02:42]}  Bg7 {[%clk 0:02:35]} 5. Nf3 {[%clk 0:02:42]}  d5 {[%clk 0:02:33]} 6. exd5 {[%clk 0:02:38]}  exd5 {[%clk 0:02:34]} 7. Bd3 {[%clk 0:02:37]}  Ne7 {[%clk 0:02:33]} 8. O-O {[%clk 0:02:33]}  O-O {[%clk 0:02:33]} 9. Ne2 {[%clk 0:02:32]}  c6 {[%clk 0:02:31]} 10. Ng3 {[%clk 0:02:32]}  f5 {[%clk 0:02:16]} 11. Ne5 {[%clk 0:02:30]}  Nd7 {[%clk 0:02:16]} 12. c3 {[%clk 0:02:27]}  Nf6 {[%clk 0:02:16]} 13. b3 {[%clk 0:02:22]}  Ne4 {[%clk 0:02:16]} 14. Qc2 {[%clk 0:02:20]}  Re8 {[%clk 0:02:02]} 15. Ba3 {[%clk 0:02:17]}  Be6 {[%clk 0:02:02]} 16. Bxe7 {[%clk 0:02:16]}  Qxe7 {[%clk 0:02:02]} 17. Rae1 {[%clk 0:02:16]}  Rac8 {[%clk 0:01:53]} 18. Bxe4 {[%clk 0:02:14]}  dxe4 {[%clk 0:01:51]} 19. c4 {[%clk 0:02:14]}  Red8 {[%clk 0:01:49]} 20. Ne2 {[%clk 0:02:09]}  b5 {[%clk 0:01:37]} 21. Rc1 {[%clk 0:01:46]}  a5 {[%clk 0:01:30]} 22. Qd2 {[%clk 0:01:36]}  Qa7 {[%clk 0:01:24]} 23. Kh1 {[%clk 0:01:31]}  b4 {[%clk 0:01:19]} 24. Rfd1 {[%clk 0:01:07]}  Rd6 {[%clk 0:01:15]} 25. Qe3 {[%clk 0:01:06]}  a4 {[%clk 0:00:32]} 26. h4 {[%clk 0:01:05]}  Qe7 {[%clk 0:00:20]} 27. g3 {[%clk 0:01:03]}  Rdd8 {[%clk 0:00:15]} 28. Kg2 {[%clk 0:01:00]}  Qa7 {[%clk 0:00:15]} 29. Rh1 {[%clk 0:00:54]}  h6 {[%clk 0:00:15]} 30. Rcd1 {[%clk 0:00:47]}  Kh7 {[%clk 0:00:13]} 31. Kf2 {[%clk 0:00:46]}  axb3 {[%clk 0:00:11]} 32. axb3 {[%clk 0:00:45]}  Qb6 {[%clk 0:00:12]} 33. h5 {[%clk 0:00:45]}  g5 {[%clk 0:00:11]} 34. fxg5 {[%clk 0:00:45]}  Bxe5 {[%clk 0:00:10]} 35. dxe5 {[%clk 0:00:46]}  Qc7 {[%clk 0:00:11]} 36. g6+ {[%clk 0:00:45]}  Kg7 {[%clk 0:00:11]} 37. Qc5 {[%clk 0:00:41]}  Rxd1 {[%clk 0:00:09]} 38. Rxd1 {[%clk 0:00:40]}  Rd8 {[%clk 0:00:10]} 39. Nf4 {[%clk 0:00:38]}  Bg8 {[%clk 0:00:08]} 40. Rxd8 {[%clk 0:00:34]}  Qxd8 {[%clk 0:00:09]} 41. Qxb4 {[%clk 0:00:33]}  Qd4+ {[%clk 0:00:09]} 42. Kg2 {[%clk 0:00:29]}  Qxe5 {[%clk 0:00:09]} 43. Qb7+ {[%clk 0:00:28]}  Kf6 {[%clk 0:00:09]} 44. Qxc6+ {[%clk 0:00:25]}  Kg5 {[%clk 0:00:09]} 45. g7 {[%clk 0:00:21]}  Qe8 {[%clk 0:00:04]} 46. Qg6+ {[%clk 0:00:19]}  Qxg6 {[%clk 0:00:04]} 47. Nxg6 {[%clk 0:00:19]}  Kf6 {[%clk 0:00:05]} 48. Nh4 {[%clk 0:00:20]}  Be6 {[%clk 0:00:04]} 49. Kf2 {[%clk 0:00:20]}  Kxg7 {[%clk 0:00:04]} 50. Ke3 {[%clk 0:00:20]}  Kf6 {[%clk 0:00:05]} 51. Kd4 {[%clk 0:00:20]}  Bf7 {[%clk 0:00:05]} 52. b4 {[%clk 0:00:20]}  Bxh5 {[%clk 0:00:05]} 53. b5 {[%clk 0:00:20]}  Be8 {[%clk 0:00:06]} 54. b6 {[%clk 0:00:19]}  Bc6 {[%clk 0:00:06]} 55. c5 {[%clk 0:00:19]}  Kg5 {[%clk 0:00:06]} 56. Ng2 {[%clk 0:00:15]}  h5 {[%clk 0:00:06]} 57. Ne3 {[%clk 0:00:15]}  f4 {[%clk 0:00:05]} 58. gxf4+ {[%clk 0:00:15]}  Kxf4 {[%clk 0:00:06]} 59. Nc2 {[%clk 0:00:15]}  h4 {[%clk 0:00:06]} 60. Nb4 {[%clk 0:00:15]}  Ba8 {[%clk 0:00:06]} 61. Nd5+ {[%clk 0:00:14]}  Kf3 {[%clk 0:00:06]} 62. Nb4 {[%clk 0:00:12]}  h3 {[%clk 0:00:06]} 63. c6 {[%clk 0:00:13]}  Bxc6 {[%clk 0:00:06]} 64. Nxc6 {[%clk 0:00:13]}  h2 {[%clk 0:00:07]} 65. Ne5+ {[%clk 0:00:13]}  Ke2 {[%clk 0:00:05]} 66. Ng4 {[%clk 0:00:13]}  h1=Q {[%clk 0:00:05]} 67. b7 {[%clk 0:00:12]}  Qd1+ {[%clk 0:00:06]} 68. Ke5 {[%clk 0:00:11]}  Qd8 {[%clk 0:00:06]} 69. Nf6 {[%clk 0:00:09]}  Qe7+ {[%clk 0:00:06]} 70. Kf5 {[%clk 0:00:08]}  Qxb7 {[%clk 0:00:06]} 71. Nxe4 {[%clk 0:00:09]}  Ke3 {[%clk 0:00:06]} 72. Nf6 {[%clk 0:00:06]}  Qf7 {[%clk 0:00:07]} 73. Ke5 {[%clk 0:00:06]}  Qe7+ {[%clk 0:00:07]} 74. Kf5 {[%clk 0:00:06]}  Kf3 {[%clk 0:00:07]} 75. Nd5 {[%clk 0:00:05]}  Qe4+ {[%clk 0:00:07]} 76. Kf6 {[%clk 0:00:04]}  Qxd5 {[%clk 0:00:08]} 0-1


[Site "https://www.chess.com"]